Workbook

Sheet Sheet1
A1: 附表4：
A2: 2025年开平市本级一般公共预算调整情况表
J3: 单位：万元
A4: 收 入 | F4: 支 出
A5: 项目 | B5: 年初预算数 | C5: 调增额 | D5: 调减额 | E5: 调整预算数 | F5: 项目 | G5: 年初预算数 | H5: 调增额 | I5: 调减额 | J5: 调整预算数
A6: 一、一般公共预算收入 | B6: 170,771 | E6: =B6+C6-D6 -> 170,771 | F6: 一、一般公共预算支出 | G6: 545,238 | H6: 45 | J6: =G6+H6-I6 -> 545,283
A7: 二、上年结转收入 | B7: 432 | E7: 432 | F7: 二、转移性支出 | G7: =G8+G9 -> 81,677 | J7: =G7+H7-I7 -> 81,677
A8: 三、转移性收入 | B8: =B9+B10 -> 438,373 | E8: 438,373 | F8: （一）上解上级支出 | G8: 51,252 | J8: =G8+H8-I8 -> 51,252
A9: （一）上级补助收入 | B9: 330,155 | E9: 330,155 | F9: （二）补助下级支出 | G9: 30,425 | J9: 30,425
A10: （二）市与镇一般性转移性支付收入 | B10: 108,218 | E10: 108,218 | F10: 三、债务转贷支出
A11: 四、债务转贷收入 | B11: =B12+B13 -> 1,329 | C11: =C12+C13 -> 45 | E11: =E12+E13 -> 1,374 | F11: （一）再融资债券支出
A12: （一）再融资债券收入 | B12: 1,329 | C12: 45 | E12: 1,374 | F12: （二）一般债券支出
A13: （二）一般债券收入 | F13: 四、债务还本支出 | G13: 187 | J13: 187
A14: 五、动用预算稳定调节基金 | B14: 8,515 | E14: =B14+C14-D14 -> 8,515 | F14: 五、安排预算稳定调节基金
A15: 六、调入资金 | B15: 478 | E15: 478 | F15: 五、结转下年支出
A16: 七、区域间转移性收入 | B16: 7,204 | E16: 7,204
A17: 收入总计 | B17: =B6+B7+B8+B11+B14+B16+B15 -> 627,102 | C17: =C6+C8+C11+C14+C16 -> 45 | E17: =E6+E7+E8+E11+E14+E16+E15 -> 627,147 | F17: 支出总计 | G17: =G6+G7+G10+G13+G14 -> 627,102 | H17: =H6+H7+H10+H13 -> 45 | J17: =J6+J7+J10+J13+J14 -> 627,147
